bitfinex/quotes_SOLUSD_20220104
["timestamp","ask_amount","ask_price","bid_price","bid_amount"]
[1641295152196,24.1714,170.97,170.88,0.006181]
[1641295152394,24.6714,170.97,170.88,0.006181]
[1641295152596,24.9314,170.97,170.88,0.006181]
[1641295153395,1.2412,170.96,170.88,0.006181]
[1641295153594,1.5012,170.96,170.88,0.006181]
[1641295153797,2.0012,170.96,170.88,0.006181]
[1641295155204,1.7412,170.96,170.88,0.006181]
[1641295155600,1.2412,170.96,170.88,0.006181]
[1641295155798,1.7412,170.96,170.88,0.006181]
[1641295158001,2.0012,170.96,170.88,0.006181]
[1641295158800,8.47,170.95,170.88,0.006181]
[1641295158999,31.5596,170.95,170.88,0.006181]
[1641295159199,1.42669368,170.94,170.88,0.006181]
[1641295159400,10.83195176,170.93,170.88,0.006181]
[1641295159600,30.46039963,170.91,170.88,0.006181]
[1641295159801,102.6216,170.9,170.88,0.006181]
[1641295160001,33.06061393,170.89,170.88,0.006181]
[1641295160205,34.31041393,170.89,170.88,0.006181]
[1641295160401,8.07041393,170.89,170.88,0.006181]
[1641295161003,7.57041393,170.89,170.88,0.006181]
[1641295161401,6.32061393,170.89,170.88,0.006181]
[1641295161601,6.06061393,170.89,170.88,0.006181]
[1641295162204,2.36195176,170.93,170.88,0.006181]
[1641295163008,2.62195176,170.93,170.88,0.006181]
[1641295164009,3.12195176,170.93,170.88,0.006181]
[1641295164216,1.2485,170.92,170.88,0.006181]
[1641295164609,24.1621,170.92,170.88,0.006181]
[1641295165008,24.6621,170.92,170.88,0.006181]
[1641295166132,24.1621,170.92,170.88,0.006181]
[1641295167133,23.9021,170.92,170.88,0.006181]
[1641295167334,22.6536,170.92,170.88,0.006181]
[1641295167934,2.36195176,170.93,170.88,0.006181]
[1641295168139,1.3356,170.96,170.88,0.006181]
[1641295169136,2.29977566,170.95,170.88,0.006181]
[1641295173239,2.55977566,170.95,170.88,0.006181]
[1641295173640,3.05977566,170.95,170.88,0.006181]
[1641295173840,2.55977566,170.95,170.88,0.006181]
[1641295174039,3.05977566,170.95,170.88,0.006181]
[1641295174239,2.55977566,170.95,170.88,0.006181]
[1641295174641,1.348,170.94,170.88,0.006181]
[1641295175042,1.608,170.94,170.88,0.006181]
[1641295175442,2.108,170.94,170.88,0.006181]
[1641295178546,1.348,170.94,170.88,0.006181]
[1641295178750,2.29977566,170.95,170.88,0.006181]
[1641295179750,2.55977566,170.95,170.88,0.006181]
[1641295180550,3.87697566,170.95,170.88,0.006181]
[1641295181254,24.7517,170.96,170.88,0.006181]
[1641295181453,74.8889,170.97,170.88,1.43287468]
[1641295181656,1.52199681,171.01,170.89,8.47]
[1641295181953,1.52199681,171.02,170.89,9.23]
[1641295182153,1.52199681,171.02,170.89,8.97]
[1641295182355,26.73711274,171.01,170.89,8.97]
[1641295182557,26.73711274,171.01,170.89,8.47]
[1641295182757,27.23711274,171.01,170.89,8.47]
[1641295182958,27.49711274,171.01,170.89,8.47]
[1641295183157,24.8682,171.0,170.88,0.006181]
[1641295183356,26.6473,171.0,170.88,0.006181]
[1641295183556,26.9073,171.0,170.88,0.006181]
[1641295184261,8.47,170.99,170.88,0.006181]
[1641295184459,23.3943,170.98,170.88,0.006181]
[1641295184883,24.1543,170.98,170.88,0.006181]
[1641295185087,78.7516,170.97,170.88,0.006181]
[1641295185488,79.5116,170.97,170.88,0.006181]
[1641295185685,2.58736259,170.95,170.88,0.006181]
[1641295185885,8.47,170.94,170.88,0.006181]
[1641295186085,29.68411591,170.93,170.88,0.006181]
[1641295186289,55.7029,170.92,170.88,0.006181]
[1641295186486,2.5955,170.91,170.88,0.006181]
[1641295186806,58.77816255,170.89,170.88,0.006181]
[1641295186985,155.99266255,170.89,170.88,0.006181]
[1641295187187,156.49266255,170.89,170.88,0.006181]
[1641295187388,100.49266255,170.89,170.88,0.006181]
[1641295189388,100.49266255,170.89,170.73,9.23]
[1641295189589,100.49266255,170.89,170.73,18.05432968]
[1641295190489,100.23266255,170.89,170.73,18.05432968]
[1641295190691,99.73266255,170.89,170.73,19.48102336]
[1641295190890,99.73266255,170.89,170.73,27.84665614]
[1641295191088,26.35186255,170.89,170.73,27.84665614]
[1641295191294,2.77816255,170.89,170.75,105.84]
[1641295191489,2.77816255,170.89,170.76,8.47]
[1641295191692,2.77816255,170.89,170.76,18.72102336]
[1641295191890,2.77816255,170.89,170.77,1.42669368]
[1641295192091,2.77816255,170.89,170.78,8.47]
[1641295192492,2.77816255,170.89,170.78,9.23]
[1641295193394,2.77816255,170.89,170.78,8.97]
[1641295194596,2.77816255,170.89,170.78,9.23]
[1641295195600,2.77816255,170.89,170.78,8.97]
[1641295195801,3.03816255,170.89,170.78,8.97]
[1641295197002,3.53816255,170.89,170.78,8.97]
[1641295197201,3.53816255,170.89,170.78,8.47]
[1641295198600,3.53816255,170.89,170.78,8.73]
[1641295200507,3.27816255,170.89,170.78,8.73]
[1641295201309,3.27816255,170.89,170.78,0.26]
[1641295201510,3.27816255,170.89,170.78,8.47]
[1641295202007,3.27816255,170.89,170.78,8.73]
[1641295202008,3.53816255,170.89,170.78,8.73]
[1641295202208,3.53816255,170.89,170.78,0.26]
[1641295202408,3.53816255,170.89,170.78,0.76]
[1641295202708,3.53816255,170.89,170.78,0.5]
[1641295202910,3.53816255,170.89,170.75,9.23]
[1641295203212,3.03816255,170.89,170.75,10.65669368]
[1641295203513,2.77816255,170.89,170.75,10.65669368]
[1641295203909,2.77816255,170.89,170.75,19.48102336]
[1641295209113,2.77816255,170.89,170.75,19.22102336]
[1641295210415,2.77816255,170.89,170.75,19.48102336]
[1641295211246,2.77816255,170.89,170.75,43.88852336]
[1641295211852,2.77816255,170.89,170.75,43.62852336]
[1641295212047,3.03816255,170.89,170.75,43.62852336]
[1641295212447,2.77816255,170.89,170.75,43.62852336]
[1641295212647,3.03816255,170.89,170.75,43.62852336]
[1641295213448,3.03816255,170.89,170.75,43.88852336]
[1641295213648,1.2781,170.88,170.75,43.88852336]
[1641295214049,1.5381,170.88,170.75,43.88852336]
[1641295215248,1.5381,170.88,170.75,43.62852336]
[1641295216549,1.5381,170.88,170.75,17.79432968]
[1641295216750,2.0381,170.88,170.75,17.79432968]
[1641295216949,1.2781,170.88,170.75,19.22102336]
[1641295217650,1.5381,170.88,170.75,19.22102336]
[1641295218050,1.5381,170.88,170.75,19.48102336]
[1641295219960,1.5381,170.88,170.75,19.22102336]
[1641295220157,1.5381,170.88,170.75,17.79432968]
[1641295220358,1.5381,170.88,170.76,1.42669368]
[1641295220558,1.5381,170.88,170.77,8.47]
[1641295221057,1.5381,170.88,170.77,8.97]
[1641295221859,1.2781,170.88,170.77,9.23]
[1641295222959,1.5381,170.88,170.77,9.23]
[1641295224865,1.5381,170.88,170.78,1.42669368]
[1641295225064,1.5381,170.88,170.78,10.15669368]
[1641295225263,1.5381,170.88,170.78,10.65669368]
[1641295225463,1.5381,170.88,170.78,9.23]
[1641295229701,1.2781,170.88,170.78,9.23]
[1641295231271,1.2781,170.88,170.78,8.97]
[1641295231670,1.5381,170.88,170.78,8.97]
[1641295233271,1.5381,170.88,170.78,0.5]
[1641295233471,1.5381,170.88,170.77,8.47]
[1641295233873,1.5381,170.88,170.77,8.97]
[1641295234073,1.5381,170.88,170.77,9.23]
[1641295234673,1.2781,170.88,170.77,9.23]
[1641295235479,1.5381,170.88,170.77,9.23]
[1641295236780,1.2781,170.88,170.77,9.23]
[1641295236978,1.2781,170.88,170.77,8.97]
[1641295237206,1.5381,170.88,170.77,8.97]
[1641295238712,1.5381,170.88,170.73,0.02]
[1641295238911,31.1056064,170.86,170.73,0.02]
[1641295239110,98.8601,170.85,170.73,0.02]
[1641295239312,8.47,170.84,170.73,0.02]
[1641295239514,2.55197794,170.82,170.73,0.02]
[1641295239712,24.949,170.81,170.73,0.02]
[1641295240014,25.209,170.81,170.73,0.02]
[1641295240215,26.5671,170.81,170.7,8.47]
[1641295240418,26.5671,170.81,170.7,8.97]
[1641295241014,26.62994753,170.81,170.7,8.97]
[1641295243316,26.62994753,170.81,170.7,9.23]
[1641295243916,26.36994753,170.81,170.7,9.23]
[1641295244217,0.06284753,170.81,170.7,9.23]
[1641295245817,0.06284753,170.81,170.7,10.65669368]
[1641295247417,1.32084753,170.81,170.7,10.65669368]
[1641295249120,1.32084753,170.81,170.7,10.39669368]
[1641295249319,1.32084753,170.81,170.7,8.97]
[1641295249919,1.32084753,170.81,170.7,0.5]
[1641295250121,10.05084753,170.81,170.66,8.9776]
[1641295250323,10.55084753,170.81,170.68,0.5]
[1641295250920,23.03352606,170.79,170.66,9.4776]
[1641295251120,24.8605,170.78,170.66,9.4776]
[1641295251321,24.8605,170.78,170.66,9.2376]
[1641295251521,24.8605,170.78,170.67,8.47]
[1641295251921,24.8605,170.78,170.67,8.73]
[1641295252521,25.1205,170.78,170.67,8.73]
[1641295252926,26.3802,170.78,170.67,8.73]
[1641295253927,26.3802,170.78,170.67,8.47]
[1641295254325,26.8802,170.78,170.67,8.47]
[1641295254727,26.8802,170.78,170.67,8.97]
[1641295254927,26.8802,170.78,170.67,0.5]
[1641295255432,26.8802,170.78,170.64,8.97]
[1641295256028,26.8802,170.78,170.64,9.23]
[1641295259135,26.1202,170.78,170.64,10.65669368]
[1641295259333,26.1202,170.78,170.64,9.23]
[1641295260434,26.3802,170.78,170.64,9.23]
[1641295260635,26.8802,170.78,170.64,9.23]
[1641295263335,26.3802,170.78,170.64,9.23]
[1641295263761,22.928368,170.78,170.64,9.23]
[1641295263963,22.928368,170.78,170.65,1.42669368]
[1641295264162,22.928368,170.78,170.66,8.47]
[1641295264364,22.928368,170.78,170.66,8.97]
[1641295264565,22.928368,170.78,170.66,9.23]
[1641295264965,22.668368,170.78,170.66,9.23]
[1641295265169,21.408668,170.78,170.66,10.65669368]
[1641295269576,21.408668,170.78,170.66,10.39669368]
[1641295269775,21.908668,170.78,170.66,8.97]
[1641295269976,22.168668,170.78,170.66,8.97]
[1641295270978,23.527168,170.78,170.66,8.97]
[1641295272080,23.527168,170.78,170.66,9.23]
[1641295273081,22.767168,170.78,170.66,10.65669368]
[1641295273280,23.03352606,170.79,170.66,10.65669368]
[1641295274081,23.03352606,170.79,170.66,33.25059368]
[1641295277710,24.5757,170.78,170.66,33.25059368]
[1641295280311,24.5757,170.78,170.66,32.99059368]
[1641295281415,24.8357,170.78,170.66,32.99059368]
[1641295281611,24.8357,170.78,170.66,31.5639]
[1641295281814,24.8357,170.78,170.66,31.8239]
[1641295282012,100.9406,170.78,170.66,31.8239]
[1641295282613,1.308,170.77,170.66,31.8239]
[1641295282813,2.45569506,170.76,170.66,31.8239]
[1641295285618,2.45569506,170.76,170.66,31.5639]
[1641295286318,2.71569506,170.76,170.66,31.5639]
[1641295286918,2.71569506,170.76,170.66,31.8239]
[1641295288425,2.45569506,170.76,170.66,31.8239]
[1641295289223,2.45569506,170.76,170.66,33.25059368]
[1641295291024,2.45569506,170.76,170.66,32.99059368]
[1641295291226,2.71569506,170.76,170.66,31.5639]
[1641295291824,3.21569506,170.76,170.66,31.5639]
[1641295292426,2.71569506,170.76,170.66,31.8239]
[1641295292827,2.71569506,170.76,170.66,31.5639]
[1641295294335,2.71569506,170.76,170.66,31.8239]
[1641295294732,3.21569506,170.76,170.66,31.8239]
[1641295296032,2.45569506,170.76,170.66,31.8239]
[1641295296435,1.308,170.77,170.67,1.42669368]
[1641295296631,1.308,170.77,170.67,8.47]
[1641295296834,1.308,170.77,170.67,9.23]
[1641295297436,4.28876284,170.77,170.67,14.301]
[1641295297634,1.308,170.77,170.67,14.301]
[1641295297834,0.06284753,170.81,170.67,15.72769368]
[1641295298034,0.06284753,170.81,170.68,24.1277]
[1641295298235,0.06284753,170.81,170.69,8.47]
[1641295298434,0.06284753,170.81,170.69,10.39669368]
[1641295298633,2.27628442,170.8,170.7,23.1069]
[1641295298833,2.27628442,170.8,170.71,8.47]
[1641295299035,2.27628442,170.8,170.71,8.73]
[1641295299235,2.27628442,170.8,170.71,9.23]
[1641295300638,2.27628442,170.8,170.71,8.97]
[1641295300839,2.53628442,170.8,170.71,8.97]
[1641295302540,3.03628442,170.8,170.71,8.47]
[1641295302741,2.53628442,170.8,170.71,8.47]
[1641295302942,3.03628442,170.8,170.71,8.47]
[1641295303443,2.53628442,170.8,170.71,9.23]
[1641295305342,3.03628442,170.8,170.71,9.23]
[1641295306742,3.03628442,170.8,170.71,8.97]
[1641295307747,3.03628442,170.8,170.71,9.23]
[1641295307946,2.53628442,170.8,170.71,9.23]
[1641295318976,2.27628442,170.8,170.71,9.23]
[1641295319679,2.27628442,170.8,170.71,0.76]
[1641295319876,2.27628442,170.8,170.71,0.26]
[1641295320080,1.3113,170.79,170.69,23.8664]
[1641295320277,1.3113,170.79,170.69,24.3664]
[1641295321776,0.06296001,170.76,170.69,24.3664]
[1641295322178,0.06296001,170.76,170.69,25.79309368]
[1641295322580,0.06296001,170.76,170.69,24.3664]
[1641295324878,0.06296001,170.76,170.7,8.47]
[1641295325084,0.06296001,170.76,170.7,8.73]
[1641295325380,0.06296001,170.76,170.7,9.23]
[1641295333688,0.06296001,170.76,170.7,8.97]
[1641295335090,0.06296001,170.76,170.7,9.23]
[1641295335289,0.06296001,170.76,170.71,24.3501]
[1641295335492,0.06296001,170.76,170.72,8.47]
[1641295335891,0.06296001,170.76,170.72,9.23]
[1641295336291,0.06296001,170.76,170.72,10.5205]
[1641295336492,0.06296001,170.76,170.73,24.0194]
[1641295336693,0.06296001,170.76,170.74,8.47]
[1641295336895,0.06296001,170.76,170.74,19.17689368]
[1641295337093,0.06296001,170.76,170.75,25.82999368]
[1641295337292,0.06296001,170.76,170.75,34.29999368]
[1641295337592,0.06296001,170.76,170.75,35.05999368]
[1641295339093,0.06296001,170.76,170.75,43.83999368]
[1641295339393,0.06296001,170.76,170.75,35.05999368]
[1641295340092,0.06296001,170.76,170.75,43.84009368]
[1641295341294,74.7191,170.9,170.76,8.71643999]
[1641295341494,74.7191,170.9,170.77,8.47]
[1641295341895,74.7191,170.9,170.77,10.65669368]
[1641295342095,23.5785,170.92,170.78,105.84]
[1641295342319,23.5785,170.92,170.79,31.8481]
[1641295342619,23.5785,170.92,170.79,33.53479368]
[1641295342919,2.6183273,170.93,170.8,10.20419368]
[1641295343121,2.6183273,170.93,170.81,8.47]
[1641295343522,2.6183273,170.93,170.81,9.23]
[1641295343722,2.6183273,170.93,170.81,33.712]
[1641295344524,2.8783273,170.93,170.81,33.712]
[1641295345225,2.6183273,170.93,170.81,33.712]
[1641295345828,2.6183273,170.93,170.81,35.13869368]
[1641295346227,23.337,170.95,170.81,35.13869368]
[1641295346428,1.52199681,170.99,170.81,149.80302336]
[1641295346626,1.52199681,170.99,170.83,105.84]
[1641295346828,24.1342,171.01,170.84,32.5088]
[1641295347027,24.1342,171.01,170.84,52.18668948]
[1641295347228,2.74630622,171.0,170.85,10.20169368]
[1641295347428,2.74630622,171.0,170.86,8.47]
[1641295347828,2.74630622,171.0,170.86,9.23]
[1641295348028,22.8775,170.99,170.86,9.23]
[1641295349027,23.1375,170.99,170.86,9.23]
[1641295349229,1.3229,170.98,170.86,9.23]
[1641295349432,77.4475,170.98,170.86,9.23]
[1641295349629,77.7075,170.98,170.86,9.23]
[1641295349829,23.6377,170.97,170.86,9.23]
[1641295350231,23.6377,170.97,170.86,8.97]
[1641295350430,23.8977,170.97,170.86,8.97]
[1641295352233,23.8977,170.97,170.86,9.23]
[1641295352634,23.6377,170.97,170.86,9.23]
[1641295353734,76.1246,170.98,170.86,9.23]
[1641295354433,76.1246,170.98,170.86,10.65669368]
[1641295354633,2.74630622,171.0,170.86,10.65669368]
[1641295356137,27.49840622,171.0,170.86,10.65669368]
[1641295356735,2.74630622,171.0,170.86,10.65669368]
[1641295359840,2.74630622,171.0,170.86,28.64788948]
[1641295360643,1.2413,171.01,170.86,28.64788948]
[1641295360842,1.2413,171.01,170.86,35.02388948]
[1641295361044,1.2413,171.01,170.86,43.79758948]
[1641295361243,1.2413,171.01,170.86,66.79508948]
[1641295361445,72.5483,171.03,170.87,105.84]
[1641295361644,72.5483,171.03,170.88,8.47]
[1641295361844,76.7249,171.07,170.9,105.84]
[1641295362045,76.7249,171.07,170.91,31.8269]
[1641295362245,76.7249,171.07,170.91,40.5979]
[1641295362451,76.7249,171.07,170.91,60.77578948]
[1641295362645,76.7249,171.07,170.92,1.42669368]
[1641295362845,78.88063015,171.07,170.93,8.47]
[1641295363145,23.4403,171.08,170.94,105.84]
[1641295363348,23.4403,171.08,170.95,17.239]
[1641295363546,75.3586,171.1,170.95,10.15669368]
[1641295363746,74.0063,171.1,170.96,1.42669368]
[1641295363950,22.9847,171.15,171.02,105.84]
[1641295364247,23.40905874,171.17,171.02,105.84]
[1641295364248,98.13315874,171.17,171.03,17.2349]
[1641295364448,98.13315874,171.17,171.03,19.16159368]
[1641295364750,98.13315874,171.17,171.04,1.42669368]
[1641295364950,98.13315874,171.17,171.05,8.47]
[1641295365349,98.13315874,171.17,171.06,1.42669368]
[1641295365550,98.13315874,171.17,171.07,8.47]
[1641295366054,98.39315874,171.17,171.07,8.47]
[1641295366456,98.89315874,171.17,171.07,8.47]
[1641295366751,98.39315874,171.17,171.07,8.47]
[1641295367151,98.13315874,171.17,171.07,8.47]
[1641295367351,98.13315874,171.17,171.07,8.73]
[1641295367551,98.13315874,171.17,171.07,9.23]
[1641295368151,98.13315874,171.17,171.07,10.65669368]
[1641295370573,98.13315874,171.17,171.07,9.23]
[1641295372573,98.13315874,171.17,171.08,1.42669368]
[1641295372775,98.13315874,171.17,171.09,8.47]
[1641295373074,74.7241,171.17,171.09,8.73]
[1641295373275,74.7241,171.17,171.09,10.65669368]
[1641295373876,74.7241,171.17,171.09,9.23]
[1641295374082,99.41611092,171.17,171.09,9.23]
[1641295374278,99.41611092,171.17,171.09,8.97]
[1641295374880,74.7241,171.17,171.09,8.97]
[1641295375483,74.7241,171.17,171.09,9.23]
[1641295375980,74.7241,171.17,171.09,8.97]
[1641295376181,74.7241,171.17,171.09,10.39669368]
[1641295377383,74.7241,171.17,171.09,10.65669368]
[1641295378083,3.00582099,171.18,171.09,10.65669368]
[1641295378884,104.4489,171.21,171.09,10.65669368]
[1641295379089,79.461,171.21,171.09,10.65669368]
[1641295379285,1.3373,171.24,171.09,19.41859368]
[1641295379485,1.3373,171.24,171.09,33.74538437]
[1641295379685,1.3373,171.24,171.09,42.91225049]
[1641295379885,3.59152705,171.24,171.09,42.91225049]
[1641295380086,30.21869578,171.24,171.09,42.91225049]
[1641295380286,30.21869578,171.24,171.09,148.75225049]
[1641295380684,3.59152705,171.24,171.09,148.75225049]
[1641295380885,3.59152705,171.24,171.1,8.7614]
[1641295381086,3.59152705,171.24,171.11,8.47]
[1641295381285,3.59152705,171.24,171.11,9.89669368]
[1641295381487,3.59152705,171.24,171.12,1.42669368]
[1641295381687,3.59152705,171.24,171.13,8.47]
[1641295381886,3.59152705,171.24,171.13,8.97]
[1641295382088,3.59152705,171.24,171.14,1.42669368]
[1641295382390,3.59152705,171.24,171.15,8.47]
[1641295382585,3.59152705,171.24,171.15,8.73]
[1641295382788,3.59152705,171.24,171.16,1.42669368]
[1641295382987,3.59152705,171.24,171.16,10.65669368]
[1641295383386,3.59152705,171.24,171.17,1.42669368]
[1641295383590,3.59152705,171.24,171.18,8.47]
[1641295384088,3.59152705,171.24,171.18,9.23]
[1641295384888,3.59152705,171.24,171.18,8.97]
[1641295385288,3.59152705,171.24,171.18,8.47]
[1641295386191,3.59152705,171.24,171.18,8.97]
[1641295386590,3.59152705,171.24,171.18,9.23]
[1641295387392,3.59152705,171.24,171.18,8.97]
[1641295388293,3.59152705,171.24,171.18,10.39669368]
[1641295388694,3.59152705,171.24,171.18,10.65669368]
[1641295389697,97.4223,171.25,171.18,10.65669368]
[1641295390101,74.127,171.25,171.18,10.65669368]
[1641295390301,79.0402,171.28,171.18,10.65669368]
[1641295390502,1.3037,171.28,171.18,10.65669368]
[1641295390700,25.85932198,171.29,171.18,10.65669368]
[1641295392803,25.85932198,171.29,171.19,8.7574]
[1641295393102,25.85932198,171.29,171.2,7.97]
[1641295393401,25.85932198,171.29,171.21,1.42669368]
[1641295393603,25.85932198,171.29,171.22,8.47]
[1641295394002,25.85932198,171.29,171.23,1.42669368]
[1641295394204,25.85932198,171.29,171.24,8.47]
[1641295394407,0.02036478,171.31,171.24,8.97]
[1641295394604,0.02036478,171.31,171.24,9.23]
[1641295394834,0.02036478,171.31,171.24,10.65669368]
[1641295395433,2.53476063,171.31,171.24,10.65669368]
[1641295396034,0.02036478,171.31,171.24,10.65669368]
[1641295396332,0.02036478,171.31,171.25,105.84]
[1641295396532,0.02036478,171.31,171.26,8.47]
[1641295396732,0.02036478,171.31,171.26,9.89669368]
[1641295396937,0.02036478,171.31,171.27,1.42669368]
[1641295397132,0.02036478,171.31,171.28,8.47]
[1641295397332,0.02036478,171.31,171.28,8.97]
[1641295397533,0.02036478,171.31,171.29,1.42669368]
[1641295397733,0.02036478,171.31,171.3,8.47]
[1641295397933,0.02036478,171.31,171.3,8.97]
[1641295398132,0.02036478,171.31,171.3,10.65669368]
[1641295398332,0.02036478,171.31,171.3,10.39669368]
[1641295400638,0.02036478,171.31,171.3,8.47]
[1641295402840,0.02036478,171.31,171.3,10.15669368]
[1641295403239,0.02036478,171.31,171.3,8.73]
[1641295403440,0.02036478,171.31,171.3,9.23]
[1641295403842,0.02036478,171.31,171.3,8.73]
[1641295404445,0.02036478,171.31,171.3,9.23]
[1641295405044,0.02036478,171.31,171.3,10.65669368]
[1641295405543,0.02036478,171.31,171.3,8.97]
[1641295405743,0.02036478,171.31,171.3,8.47]
[1641295406144,0.02036478,171.31,171.3,9.89669368]
[1641295407044,0.02036478,171.31,171.3,8.47]
[1641295407451,0.02036478,171.31,171.3,8.97]
[1641295407646,0.02036478,171.31,171.3,0.5]
[1641295407847,0.02036478,171.31,171.29,0.02]
[1641295409547,0.02036478,171.31,171.3,8.47]
[1641295409951,0.02036478,171.31,171.3,9.23]
[1641295410948,0.02036478,171.31,171.3,10.65669368]
[1641295413554,0.00036478,171.31,171.3,10.65669368]
[1641295421288,0.00036478,171.31,171.3,10.39669368]
[1641295421489,0.00036478,171.31,171.3,8.47]
[1641295422789,0.00036478,171.31,171.3,8.97]
[1641295427198,0.00036478,171.31,171.3,10.65669368]
[1641295430001,0.00036478,171.31,171.3,10.39669368]
[1641295435712,0.00036478,171.31,171.3,8.97]
[1641295436509,0.00036478,171.31,171.3,9.23]
[1641295438109,0.00036478,171.31,171.3,8.97]
[1641295438314,0.00036478,171.31,171.3,8.47]
[1641295438514,0.00036478,171.31,171.29,0.02]
[1641295439312,68.03061393,171.3,171.29,0.02]
[1641295439512,31.16640744,171.3,171.29,0.02]
[1641295440342,31.16640744,171.3,171.24,8.47]
[1641295440743,31.16640744,171.3,171.24,8.97]
[1641295440946,31.16640744,171.3,171.28,0.02]
[1641295443244,31.16640744,171.3,171.24,8.47]
[1641295443450,31.16640744,171.3,171.18,10.33779368]
[1641295443645,39.00340744,171.3,171.19,8.47]
[1641295444245,22.5292,171.29,171.15,8.47]
[1641295444446,23.0292,171.29,171.15,8.47]
[1641295444645,23.2892,171.29,171.15,8.47]
[1641295445646,1.3478,171.28,171.15,8.47]
[1641295445847,3.27449368,171.28,171.15,8.47]
[1641295446050,2.1078,171.28,171.15,8.47]
[1641295446249,76.8245,171.27,171.15,8.47]
[1641295446451,22.7761,171.26,171.15,8.47]
[1641295446849,23.0361,171.26,171.15,8.47]
[1641295447049,23.5361,171.26,171.15,8.47]
[1641295447255,24.8881,171.26,171.15,8.47]
[1641295447850,24.8881,171.26,171.11,8.47]
[1641295448051,33.3581,171.26,171.11,8.47]
[1641295448250,34.78479368,171.26,171.11,8.47]
[1641295448453,34.78479368,171.26,171.07,8.47]
[1641295448657,34.78479368,171.26,171.05,8.47]
[1641295448658,23.3366,171.25,171.05,8.47]
[1641295448854,42.46789821,171.24,171.05,8.47]
[1641295449153,31.55857658,171.23,171.05,8.47]
[1641295449357,8.7702,171.21,171.05,8.47]
[1641295449556,98.061,171.2,171.05,8.47]
[1641295449857,99.98769368,171.2,171.05,8.47]
[1641295450058,1.42669368,171.19,171.05,8.47]
[1641295450257,3.02767354,171.18,171.05,8.47]
[1641295450458,3.78767354,171.18,171.05,8.47]
[1641295450658,12.25767354,171.18,171.02,8.47]
[1641295450987,25.74390677,171.16,171.02,8.47]
[1641295451160,22.7458,171.15,171.02,8.47]
[1641295451359,23.2458,171.15,171.02,8.47]
[1641295451559,23.5058,171.15,171.02,8.47]
[1641295451859,76.6519,171.14,171.02,8.97]
[1641295452059,76.9119,171.14,171.02,8.97]
[1641295452260,77.4119,171.14,171.02,8.97]
[1641295458563,78.83859368,171.14,171.02,0.5]
[1641295458967,78.83859368,171.14,170.99,8.97]
[1641295459165,78.83859368,171.14,170.99,8.47]
[1641295459364,2.56166237,171.12,170.99,8.47]
[1641295459564,2.82166237,171.12,170.99,8.47]
[1641295459766,3.32166237,171.12,170.99,8.47]
[1641295460366,3.32166237,171.12,170.99,8.73]
[1641295460770,1.2618,171.11,170.99,8.73]
[1641295460967,1.5218,171.11,170.99,8.73]
[1641295461167,2.0218,171.11,170.99,8.73]
[1641295461568,2.0218,171.11,170.99,9.23]
[1641295462372,2.0218,171.11,170.99,8.97]
[1641295462970,1.2618,171.11,170.99,8.97]
[1641295463171,2.56166237,171.12,170.99,8.97]
[1641295464473,2.56166237,171.12,170.99,9.23]
[1641295470293,2.56166237,171.12,170.99,8.97]
[1641295470494,2.82166237,171.12,170.99,8.97]
[1641295470897,2.56166237,171.12,170.99,8.97]
[1641295471597,2.56166237,171.12,170.99,9.23]
[1641295472396,2.56166237,171.12,170.99,18.05432968]
[1641295472600,25.74390677,171.16,171.0,105.84]
[1641295472797,25.74390677,171.16,171.02,105.84]
[1641295472999,25.74390677,171.16,171.03,8.47]
[1641295473197,25.74390677,171.16,171.03,18.72102336]
[1641295473498,25.74390677,171.16,171.03,19.48102336]
[1641295474401,2.33145197,171.22,171.04,8.82432968]
[1641295474602,2.59145197,171.22,171.05,137.4634]